bitfinex/quotes_ETHUSD_20260306
["timestamp","ask_amount","ask_price","bid_price","bid_amount"]
[1772830017744,2.72902525,1979.2,1978.0,1.39514581]
[1772830017949,2.72902525,1979.2,1978.2,1.39514581]
[1772830018277,1.4590029,1979.1,1978.2,1.39514581]
[1772830019077,1.4590029,1979.0,1978.2,1.39514581]
[1772830020052,2.72233101,1978.9,1978.2,1.39514581]
[1772830020438,1.4590029,1978.8,1977.7,1.39514581]
[1772830022373,1.35359584,1978.6,1977.9,1.46541344]
[1772830022546,1.35359584,1978.8,1977.9,1.46541344]
[1772830024909,1.35359584,1978.6,1977.9,1.46541344]
[1772830025117,1.35359584,1978.6,1977.9,2.72936918]
[1772830027226,1.26358352,1978.5,1977.9,2.72936918]
[1772830028524,2.61717936,1978.5,1977.9,2.72936918]
[1772830030596,2.61717936,1978.5,1978.0,1.46541344]
[1772830030597,1.35359584,1978.5,1978.0,1.46541344]
[1772830030903,2.61810194,1978.7,1978.0,1.46541344]
[1772830032349,1.59,1979.0,1978.1,2.73892522]
[1772830032350,1.26330006,1979.0,1978.1,2.73892522]
[1772830032501,2.6168959,1979.0,1978.2,1.46541344]
[1772830032701,1.35359584,1979.2,1978.4,1.46541344]
[1772830032929,1.35359584,1979.2,1978.2,1.46541344]
[1772830035335,1.26320044,1979.1,1978.4,1.46541344]
[1772830035922,1.35359584,1979.0,1978.4,1.46541344]
[1772830036725,1.26320044,1979.1,1978.4,1.46541344]
[1772830037035,2.61679628,1979.1,1978.4,1.46541344]
[1772830037839,2.61679628,1979.1,1978.4,2.7290127]
[1772830038010,2.61779628,1979.1,1978.4,2.7290127]
[1772830038210,2.61779628,1979.1,1978.4,1.26359926]
[1772830038508,2.61779628,1979.1,1978.5,1.46541344]
[1772830039932,2.61779628,1979.1,1978.5,2.72899528]
[1772830041037,1.35359584,1979.0,1978.2,1.46541344]
[1772830042045,1.35359584,1978.8,1978.0,1.46651344]
[1772830042241,1.35359584,1978.8,1978.0,0.0011]
[1772830042621,1.35359584,1978.8,1978.0,2.73038161]
[1772830042827,2.94059584,1978.8,1978.1,1.46541344]
[1772830043143,1.35359584,1978.7,1978.1,1.46541344]
[1772830043924,1.26351966,1978.6,1978.1,1.46541344]
[1772830044130,1.26351966,1978.6,1978.1,2.72925033]
[1772830044131,2.6171155,1978.6,1978.1,2.72925033]
[1772830044330,1.35359584,1978.9,1978.2,1.46541344]
[1772830044527,2.94059584,1978.9,1978.2,1.46541344]
[1772830045147,1.35359584,1978.8,1978.2,1.46541344]
[1772830045848,1.35359584,1978.8,1978.0,0.0011]
[1772830046048,1.35359584,1978.6,1978.0,0.0011]
[1772830046541,1.2634558,1978.7,1978.0,1.46651344]
[1772830047731,1.35359584,1978.8,1978.0,1.46651344]
[1772830047934,1.26339692,1978.8,1978.0,1.46651344]
[1772830048944,6.40704899,1978.9,1978.2,1.46541344]
[1772830051162,2.61692395,1978.9,1978.3,2.7291247]
[1772830051368,5.05413193,1979.0,1978.4,1.46541344]
[1772830051529,0.001,1979.0,1978.4,1.46541344]
[1772830051735,0.001,1979.1,1978.4,1.46541344]
[1772830053154,0.001,1979.1,1978.6,1.33211443]
[1772830055252,0.001,1979.1,1978.7,2.59557023]
[1772830055857,0.001,1979.1,1978.7,1.2634558]
[1772830056067,0.001,1979.1,1978.8,1.33211443]
[1772830056239,0.001,1979.3,1978.8,1.33211443]
[1772830057341,0.001,1979.3,1979.0,1.33211443]
[1772830058466,0.001,1979.3,1978.8,2.59545607]
[1772830059132,0.001,1979.3,1978.4,5.05409936]
[1772830059133,1.37757612,1979.3,1978.3,1.33211443]
[1772830059474,1.37657612,1979.1,1978.4,1.26364739]
[1772830059946,1.37657612,1979.1,1978.3,2.59579071]
[1772830060954,1.37657612,1979.1,1978.4,1.33211443]
[1772830062245,2.63984039,1979.0,1978.4,1.33211443]
[1772830062430,1.37657612,1978.9,1978.2,2.59585431]
[1772830062860,1.37657612,1978.9,1978.5,0.0011]
[1772830064466,1.26339195,1978.8,1978.5,0.0011]
[1772830065365,2.63995466,1978.9,1978.5,0.0011]
[1772830068066,0.001,1979.0,1978.5,1.33321443]
[1772830068266,2.64066657,1979.3,1978.6,1.33211443]
[1772830068644,2.64066657,1979.3,1978.7,2.59557023]
[1772830069869,2.64066657,1979.3,1978.7,1.33211443]
[1772830070071,1.37657612,1979.2,1978.5,0.0011]
[1772830070245,1.37657612,1979.2,1978.5,2.59676751]
[1772830071067,2.63977656,1979.1,1978.5,2.59676751]
[1772830071249,1.37657612,1979.0,1978.5,1.33321443]
[1772830071454,1.37657612,1979.0,1978.5,0.0011]
[1772830072372,1.26320044,1979.1,1978.5,1.26466351]
[1772830072575,1.2641034,1979.3,1978.6,1.33211443]
[1772830073274,0.001,1979.3,1978.7,2.59557023]
[1772830074674,0.001,1979.3,1978.7,1.33211443]
[1772830074979,1.37757612,1979.3,1978.7,1.33211443]
[1772830075279,1.26313662,1979.2,1978.8,1.26339195]
[1772830076151,1.26413662,1979.2,1978.8,1.26339195]
[1772830077068,1.26413662,1979.2,1978.7,1.33211443]
[1772830077267,1.26413662,1979.2,1978.7,2.59557023]
[1772830077570,1.26413662,1979.2,1978.6,1.2646133]
[1772830077571,1.25365831,1979.1,1978.6,1.2646133]
[1772830078078,1.25365831,1979.1,1978.4,0.0011]
[1772830079381,1.25365831,1979.1,1978.4,2.52089842]
[1772830079549,1.25365831,1978.9,1978.4,1.25725387]
[1772830079951,1.25365831,1978.9,1978.4,0.0011]
[1772830080794,6.3067154,1979.1,1978.4,2.52088292]
[1772830080974,6.3067154,1979.1,1978.5,1.25615387]
[1772830081176,1.25365831,1979.0,1978.4,1.26472905]
[1772830081378,1.25365831,1979.0,1978.4,0.0011]
[1772830081687,1.25365831,1978.8,1978.4,0.0011]
[1772830082490,1.26332811,1978.9,1978.4,0.0011]
[1772830082977,2.52013189,1978.9,1978.4,0.0011]
[1772830083290,1.25680378,1978.8,1978.2,0.0011]
[1772830083786,1.25680378,1978.6,1978.2,0.0011]
[1772830086471,1.25680378,1978.4,1978.2,0.0011]
[1772830088181,1.25680378,1978.4,1978.3,0.0011]
[1772830088387,1.25680378,1978.4,1978.1,0.0011]
[1772830088388,2.52045117,1978.4,1978.1,0.0011]
[1772830088553,2.52045117,1978.4,1977.9,0.0011]
[1772830088554,1.25680378,1978.3,1977.9,0.0011]
[1772830088960,2.52043179,1978.5,1977.9,1.30076996]
[1772830089189,2.52040852,1978.5,1977.9,1.30076996]
[1772830089364,1.26360474,1978.5,1977.9,1.30076996]
[1772830090087,2.52040852,1978.5,1977.9,1.30076996]
[1772830090485,2.52040852,1978.5,1978.0,1.29966996]
[1772830090865,1.25680378,1978.4,1977.9,1.26503551]
[1772830091390,1.25680378,1978.4,1977.9,2.56470547]
[1772830091769,1.26360474,1978.5,1978.0,1.29966996]
[1772830092380,2.52040852,1978.5,1978.0,1.29966996]
[1772830092788,2.52040852,1978.5,1978.0,2.56352916]
[1772830092990,2.52040852,1978.5,1978.0,2.56357245]
[1772830093195,1.26360474,1978.5,1978.1,1.29966996]
[1772830093371,0.001,1978.7,1978.1,1.29966996]
[1772830093692,1.26445638,1978.7,1978.1,1.29966996]
[1772830094394,1.25680378,1978.6,1978.0,1.26390249]
[1772830094700,1.25680378,1978.6,1978.0,2.56357245]
[1772830094866,1.26358352,1978.5,1978.0,2.56357245]
[1772830095061,2.52037324,1978.6,1978.0,2.56357245]
[1772830095266,1.25680378,1978.6,1978.1,1.29966996]
[1772830095484,0.001,1978.7,1978.1,1.29966996]
[1772830096782,0.001,1978.7,1978.2,1.29966996]
[1772830096983,0.001,1978.7,1978.4,1.29966996]
[1772830097185,0.001,1978.7,1978.3,1.29966996]
[1772830098887,0.001,1978.7,1978.4,1.26364739]
[1772830099369,0.001,1978.7,1978.4,2.56331735]
[1772830105218,1.25780378,1978.7,1978.3,0.0011]
[1772830107096,1.25680378,1978.5,1978.3,0.0011]
[1772830107725,1.25680378,1978.5,1978.2,0.0011]
[1772830107927,1.25680378,1978.5,1978.0,1.2649823]
[1772830109286,1.26364739,1978.4,1978.0,1.2649823]
[1772830109493,2.52042427,1978.5,1978.0,1.2649823]
[1772830109701,2.52042427,1978.5,1978.0,2.56465226]
[1772830110355,1.25680378,1978.4,1978.0,0.0011]
[1772830111412,2.52050021,1978.4,1978.0,0.0011]
[1772830112035,2.52050021,1978.4,1978.1,0.0011]
[1772830112734,1.25680378,1978.4,1978.1,0.0011]
[1772830113230,2.52045216,1978.4,1978.1,0.0011]
[1772830113622,1.24796673,1978.3,1978.1,0.0011]
[1772830115507,2.51172271,1978.3,1978.1,0.0011]
[1772830115938,1.24796673,1978.2,1977.9,0.0011]
[1772830117010,1.24796673,1978.2,1977.9,1.26505483]
[1772830117231,2.51155025,1978.5,1978.0,1.23948374]
[1772830117612,1.24796673,1978.4,1978.0,1.23948374]
[1772830119742,2.51163651,1978.4,1978.0,1.23948374]
[1772830119914,1.26365418,1978.4,1978.0,1.23948374]
[1772830120942,1.24796673,1978.3,1977.9,0.0011]
[1772830121523,1.24796673,1978.3,1977.9,1.24058374]
[1772830121724,1.24796673,1978.5,1978.0,1.26390293]
[1772830121935,1.24796673,1978.5,1978.0,2.50338667]
[1772830122726,1.24796673,1978.5,1978.1,1.23948374]
[1772830124241,2.51158681,1978.5,1978.1,2.50331107]
[1772830124442,0.001,1978.2,1978.1,2.50331107]
[1772830125323,5.05516408,1978.6,1978.2,1.23948374]
[1772830125324,0.001,1978.6,1978.2,1.23948374]
[1772830126363,0.001,1978.6,1978.4,1.23948374]
[1772830128450,0.001,1978.6,1978.4,2.50311117]
[1772830129849,0.001,1978.6,1978.4,1.23948374]
[1772830131226,0.001,1978.6,1978.2,1.23948374]
[1772830131958,1.24896673,1978.6,1978.2,1.23948374]
[1772830132254,1.24896673,1978.6,1978.0,2.50443353]
[1772830132557,1.24896673,1978.6,1978.1,1.23948374]
[1772830132866,1.24796673,1978.4,1978.0,1.24058374]
[1772830133030,1.24796673,1978.4,1978.0,0.0011]
[1772830134748,1.24796673,1978.2,1978.0,0.0011]
[1772830136029,1.24796673,1978.2,1978.1,0.0011]
[1772830136861,2.51174187,1978.2,1978.1,0.0011]
[1772830138166,1.24796673,1978.2,1978.1,0.0011]
[1772830138531,2.51174187,1978.2,1978.1,0.0011]
[1772830138931,1.24796673,1978.2,1978.1,0.0011]
[1772830140489,0.08260313,1978.4,1978.1,0.0011]
[1772830140627,0.001,1978.5,1978.1,1.27252728]
[1772830140829,0.001,1978.5,1978.2,1.26377514]
[1772830141076,0.001,1978.5,1978.3,1.27142728]
[1772830141428,1.583,1978.9,1978.2,1.26377514]
[1772830141429,2.61048614,1979.2,1978.4,1.27142728]
[1772830141633,1.26418803,1979.2,1978.4,1.27142728]
[1772830141830,0.001,1979.2,1978.4,1.27142728]
[1772830142054,0.001,1979.2,1978.5,1.33295389]
[1772830142567,6.74803894,1979.4,1978.6,1.33295389]
[1772830142568,0.38637231,1979.4,1978.6,1.33295389]
[1772830143067,1.26287262,1979.7,1978.7,1.33295389]
[1772830143365,2.57238784,1979.8,1978.7,1.33295389]
[1772830144767,1.26369014,1979.9,1979.4,1.33295389]
[1772830145064,1.26369014,1979.9,1979.6,1.33295389]
[1772830145065,0.001,1979.9,1979.6,1.33295389]
[1772830146332,1.578,1980.5,1979.6,1.33295389]
[1772830146333,1.30962159,1980.4,1979.6,1.33295389]
[1772830146955,1.26243498,1980.3,1979.6,2.59580673]
[1772830147152,2.57205657,1980.3,1979.7,1.33295389]
[1772830147344,1.30962159,1980.2,1979.3,1.33295389]
[1772830147860,0.001,1979.7,1979.3,1.33295389]
[1772830151048,0.001,1979.7,1979.4,1.33295389]
[1772830151869,0.001,1979.7,1979.2,1.33295389]
[1772830152230,1.31062159,1979.7,1979.2,1.33295389]
[1772830152534,1.26288139,1979.6,1979.2,1.33295389]
[1772830155359,0.001,1979.7,1979.3,1.33295389]
[1772830155747,1.26382345,1979.7,1979.3,1.33295389]
[1772830155956,2.57344504,1979.7,1979.3,1.33295389]
[1772830156155,2.57344504,1979.7,1979.1,1.33295389]
[1772830157047,2.57344504,1979.7,1979.1,2.59609638]
[1772830157641,2.57344504,1979.7,1979.2,1.33295389]
[1772830158162,0.001,1979.7,1979.2,1.33295389]
[1772830158955,1.26230749,1980.5,1979.3,1.282]
[1772830159269,1.26243498,1980.3,1979.6,1.33295389]
[1772830159764,0.001,1979.7,1979.6,1.33295389]
[1772830159937,1.26243498,1980.3,1979.6,1.33295389]
[1772830160468,2.5720089,1980.4,1979.6,1.33295389]
[1772830160674,6.74671627,1980.6,1979.6,1.33295389]
[1772830160965,1.6976321,1980.6,1979.6,1.33295389]
[1772830161267,2.57197647,1980.5,1979.8,1.33295389]
[1772830161963,1.30962159,1980.5,1979.8,1.33295389]
[1772830162186,0.38801051,1980.6,1979.8,1.33295389]
[1772830162472,1.65026313,1980.6,1979.8,1.33295389]
[1772830162882,1.65026313,1980.6,1979.8,2.61495389]
[1772830163167,2.57199282,1980.4,1979.8,1.33295389]
[1772830165241,2.57199282,1980.4,1979.8,2.59570509]
[1772830165557,1.30962159,1980.3,1979.6,5.32476212]
[1772830165742,1.30962159,1980.3,1979.6,4.06189246]
[1772830167169,1.30962159,1980.3,1979.6,5.32476929]
[1772830167373,1.30962159,1980.5,1979.7,1.33295389]
[1772830169381,1.30962159,1980.5,1979.9,1.33295389]
[1772830169382,1.26237123,1980.4,1979.9,1.33295389]
[1772830170788,2.57197823,1980.5,1979.9,1.33295389]
[1772830171259,1.2622713,1980.6,1980.1,1.33295389]
[1772830171882,1.26912473,1980.5,1979.9,1.2749765]
[1772830172187,0.002,1980.3,1979.9,1.2749765]
[1772830173186,0.002,1980.4,1980.0,1.2749765]
[1772830173396,0.002,1980.4,1980.2,1.2749765]
[1772830175666,0.002,1980.4,1980.0,1.2749765]
[1772830178166,0.002,1980.4,1980.1,1.26256249]
[1772830178393,0.002,1980.4,1980.0,2.5375577]
[1772830181589,0.002,1980.4,1980.1,1.2749765]
[1772830182585,0.002,1980.4,1980.1,2.53750474]
[1772830182892,1.27112473,1980.4,1980.1,1.26252824]
[1772830183810,1.27112473,1980.4,1979.8,1.26275381]
[1772830183972,1.27112473,1980.4,1979.8,2.53773031]
[1772830184174,1.27112473,1980.4,1979.9,1.2749765]
[1772830184375,0.002,1980.4,1979.9,1.2749765]
[1772830184571,0.002,1980.4,1980.0,1.26262626]
[1772830184776,0.002,1980.4,1980.1,1.2759765]
[1772830185073,1.27112473,1980.6,1980.1,1.2759765]
[1772830185274,0.002,1980.6,1980.1,1.2759765]
[1772830186794,0.002,1980.6,1980.2,1.26249873]
[1772830186795,1.27112473,1980.6,1980.2,1.26249873]
[1772830186995,1.27112473,1980.6,1980.2,2.53747523]
[1772830188574,0.002,1980.6,1980.2,2.53747523]
[1772830188778,0.002,1980.6,1980.4,2.53734773]
[1772830189817,1.27112473,1980.6,1980.2,2.53743194]
[1772830190051,1.27112473,1980.6,1980.2,1.2749765]
[1772830190326,1.27112473,1980.6,1980.2,2.53745643]
[1772830191080,0.002,1980.6,1980.2,1.26247993]
[1772830191275,0.002,1980.6,1980.3,1.2749765]
[1772830191481,1.26200758,1981.0,1980.3,1.2749765]
[1772830191482,2.53113231,1981.0,1980.3,1.2749765]
[1772830191915,1.26912473,1981.0,1980.3,1.2749765]
[1772830192287,2.53112651,1981.0,1980.3,1.2749765]
[1772830193190,0.2769552,1981.2,1980.5,1.2749765]
[1772830196622,0.31622725,1981.0,1980.5,2.53724164]
[1772830197317,0.002,1980.9,1980.5,2.53724164]
[1772830197522,0.002,1980.9,1980.6,1.38755426]
[1772830198602,0.002,1980.9,1980.3,0.001]
[1772830198603,0.43152607,1980.8,1980.3,0.001]
[1772830198786,0.43152607,1980.8,1980.4,1.38755426]
[1772830199293,0.43152607,1980.8,1980.3,0.001]
[1772830199493,0.43152607,1980.8,1980.3,1.2634182]
[1772830199684,0.43152607,1980.8,1980.3,2.65097246]
[1772830200019,0.43367821,1980.9,1980.4,1.38755426]
[1772830200228,0.43167821,1981.3,1980.4,1.38755426]
[1772830200823,0.43167821,1981.1,1980.4,1.38755426]
[1772830201018,0.43167821,1981.1,1980.3,0.001]
[1772830202415,0.43167821,1981.1,1980.4,1.26827264]
[1772830202630,0.43351064,1980.9,1980.3,0.001]
[1772830204107,0.43351064,1980.9,1980.2,0.001]
[1772830204718,0.43252377,1980.7,1980.2,0.001]
[1772830205638,0.43255066,1980.6,1980.2,0.001]
[1772830205836,0.43255066,1980.6,1980.0,0.001]
[1772830206788,0.43252393,1980.4,1980.0,0.001]
[1772830207190,0.43252393,1980.2,1979.3,0.001]
[1772830207616,0.43252393,1980.2,1979.3,1.26927264]
[1772830207930,0.43252393,1980.2,1979.4,1.26827264]
[1772830208947,0.51151609,1980.0,1979.3,1.26927264]
[1772830209125,0.51151609,1980.0,1979.3,0.001]
[1772830210012,1.7737868,1980.1,1979.4,1.26827264]
[1772830210900,0.50899685,1980.0,1979.4,1.26927264]
[1772830211110,0.50899685,1980.0,1979.4,2.53226871]
[1772830211324,0.50899685,1980.0,1979.4,1.26927264]
[1772830211707,0.50899685,1980.0,1979.5,1.26827264]
[1772830212127,1.76928383,1980.2,1979.5,1.26827264]
[1772830212329,1.26249873,1980.2,1979.5,1.26827264]
[1772830212631,1.26247048,1980.3,1979.5,1.26827264]
[1772830212836,1.26247048,1980.3,1979.7,1.26827264]
[1772830213037,0.50457798,1980.2,1979.5,1.26827264]
[1772830215140,1.26256249,1980.1,1979.5,2.53119032]
[1772830215337,1.26256249,1980.1,1979.6,1.26827264]
[1772830215838,0.49803327,1980.0,1979.4,1.26927264]
[1772830216038,2.04903327,1980.0,1979.4,0.001]
[1772830216245,0.49803327,1979.9,1979.4,0.001]
[1772830217145,0.49487028,1979.6,1979.2,0.001]
[1772830217324,0.49487028,1979.6,1979.0,0.001]
[1772830218417,1.26281759,1979.7,1979.0,1.26927264]
[1772830219240,1.26281759,1979.7,1979.1,1.26320044]
[1772830219444,1.26281759,1979.7,1979.1,2.53147308]
[1772830219956,1.26281759,1979.7,1979.0,0.001]
[1772830219957,0.48856608,1979.6,1979.0,0.001]
[1772830221329,1.74940738,1979.5,1979.0,0.001]
[1772830221534,0.4864622,1979.4,1979.0,0.001]
[1772830222271,2.0444622,1979.4,1978.8,0.0011]
[1772830222641,1.558,1979.4,1978.8,1.26937264]
[1772830223241,1.558,1979.4,1979.1,0.0011]
[1772830223440,1.2630728,1979.3,1978.8,0.0011]
[1772830223640,1.74436682,1979.3,1979.0,0.0011]
[1772830224947,1.2630728,1979.3,1979.0,0.0011]
[1772830226976,0.47300466,1979.2,1978.8,0.0011]
[1772830227175,0.44998441,1979.1,1978.5,0.0011]
[1772830227352,1.26326427,1979.0,1978.2,1.26827264]
[1772830227673,0.44888441,1978.8,1978.1,0.0011]
[1772830228268,0.44888441,1978.8,1978.1,1.26937264]
[1772830228441,0.44888441,1978.8,1978.2,1.26827264]
[1772830228750,1.562,1978.7,1978.2,1.26827264]
[1772830229153,0.44490296,1978.9,1978.2,1.26827264]
[1772830229351,1.563,1978.8,1978.2,1.26827264]
[1772830229575,1.2634558,1978.7,1978.2,1.26827264]
[1772830230371,2.8264558,1978.7,1978.2,1.26827264]
[1772830230749,2.8274558,1978.7,1978.3,1.26827264]
[1772830230959,1.26320044,1979.1,1978.3,1.26827264]
[1772830231144,5.85924837,1979.2,1978.3,1.26827264]
[1772830231345,4.29524837,1979.2,1978.3,1.26827264]
[1772830231550,4.29524837,1979.2,1978.5,1.26827264]
[1772830232644,3.03206937,1979.2,1978.5,1.26827264]
[1772830233249,1.30228576,1979.2,1978.7,1.40934366]
[1772830233473,1.30228576,1979.2,1978.9,1.40934366]
[1772830233791,1.30228576,1979.2,1978.4,1.40934366]
[1772830233792,2.26944474,1979.1,1978.4,1.40934366]
[1772830234199,1.26320044,1979.1,1978.5,1.40934366]
[1772830234554,6.35508753,1979.2,1978.5,1.40934366]
[1772830234555,2.5654229,1979.2,1978.5,1.40934366]
[1772830235410,1.30228576,1979.2,1978.5,1.40934366]
[1772830235710,1.30228576,1979.2,1978.7,1.40934366]
[1772830236263,1.566,1979.5,1978.7,1.40934366]
[1772830236484,1.26390201,1979.6,1978.7,1.40934366]
[1772830237116,0.001,1979.6,1978.7,1.40934366]
[1772830237390,1.2638971,1979.6,1978.7,1.40934366]
[1772830237596,0.001,1979.6,1978.9,1.40934366]
[1772830238600,1.26261048,1980.1,1979.0,1.40934366]
[1772830239710,5.05024998,1980.2,1979.1,1.26320044]
[1772830239908,5.05024998,1980.2,1979.2,1.40934366]
[1772830240767,1.08329542,1980.1,1979.2,1.40934366]
[1772830241806,1.26262626,1980.0,1979.2,1.40934366]
[1772830241980,2.34237877,1980.0,1979.2,1.40934366]
[1772830242499,2.34237877,1980.0,1979.2,2.67247615]
[1772830242678,2.34237877,1980.0,1979.2,1.40934366]
[1772830243311,2.34237877,1980.0,1979.3,1.40934366]
[1772830243501,6.61715895,1980.2,1979.3,1.40934366]
[1772830243881,6.61715895,1980.2,1979.5,1.40934366]
[1772830244677,2.82949873,1980.2,1979.5,1.40934366]
[1772830245098,1.26249873,1980.2,1979.5,1.40934366]
[1772830246216,1.0726945,1980.2,1979.6,1.40934366]
[1772830247076,1.0726945,1980.2,1979.3,1.26302368]
[1772830247077,1.0726945,1980.2,1979.4,1.40934366]
[1772830247277,1.0726945,1980.2,1979.2,1.40934366]
[1772830247990,1.07021122,1980.1,1979.2,1.40934366]
[1772830248298,1.26262626,1980.0,1979.2,1.40934366]
[1772830248493,1.26262626,1980.0,1979.3,1.40934366]
[1772830250304,2.32835076,1980.0,1979.3,1.40934366]
[1772830250839,1.26262626,1980.0,1979.4,1.40934366]
[1772830251203,2.32661694,1980.0,1978.9,1.40934366]
[1772830251408,2.32661694,1980.0,1979.0,1.40934366]
[1772830251409,1.06399068,1979.9,1979.0,1.40934366]
[1772830252522,1.26275381,1979.8,1979.2,1.40934366]
[1772830253232,1.26361217,1980.1,1979.2,1.40934366]
[1772830255042,1.26361217,1980.1,1979.1,1.26320044]
[1772830255043,1.05811474,1980.1,1979.3,1.40934366]
[1772830255224,1.05811474,1980.1,1979.0,1.40934366]
[1772830257040,1.26262626,1980.0,1979.1,1.26320044]
[1772830257224,1.26262626,1980.0,1979.2,1.32500038]
[1772830257626,1.05382705,1979.9,1979.2,1.32500038]
[1772830259013,1.26275381,1979.8,1979.2,1.32500038]
[1772830259219,2.3131753,1979.8,1979.2,1.32500038]
[1772830259443,1.05042149,1979.6,1979.1,0.001]
[1772830259844,1.05042149,1979.6,1978.6,2.53647297]
[1772830259845,1.05042149,1979.6,1979.0,0.001]
[1772830260060,1.05042149,1979.6,1978.6,1.32500038]
[1772830260347,1.05042149,1979.6,1978.8,0.001]
[1772830261341,1.04608068,1979.4,1978.8,0.001]
[1772830262265,1.04608068,1979.4,1978.8,1.35316274]
[1772830262415,1.26294518,1979.5,1978.8,1.35316274]
[1772830263132,1.04280745,1979.4,1978.5,1.35326274]
[1772830263327,1.04280745,1979.4,1978.4,0.0011]
[1772830263328,1.30324128,1979.2,1978.4,0.0011]
[1772830264272,1.30324128,1979.0,1978.4,0.0011]
[1772830264575,2.43449802,1979.1,1978.4,0.0011]
[1772830264576,1.30324128,1978.8,1978.4,0.0011]
[1772830265561,1.2634558,1978.7,1978.4,0.0011]
[1772830265773,1.30324128,1978.6,1978.2,0.0011]
[1772830265968,1.2634558,1978.7,1978.2,0.0011]
[1772830266269,1.26322852,1979.1,1978.2,1.35326274]
[1772830267062,1.30324128,1979.0,1978.2,1.35326274]
[1772830267263,1.30324128,1979.0,1978.2,0.0011]
[1772830267618,1.30324128,1978.8,1978.2,0.0011]
[1772830268266,1.30324128,1978.7,1978.2,0.0011]
[1772830269873,2.56674556,1978.7,1978.2,0.0011]
[1772830270180,1.26335184,1978.9,1978.2,1.35326274]
[1772830270340,6.61631244,1979.0,1978.2,1.35326274]
[1772830270341,2.8263189,1979.0,1978.2,1.35326274]
[1772830271583,4.69897272,1979.0,1978.2,1.35326274]
[1772830271970,1.30324128,1978.9,1978.3,0.0011]
[1772830272283,4.69897272,1979.0,1978.3,0.0011]
[1772830272579,4.69897272,1979.0,1978.3,1.35326274]
[1772830274171,4.69897272,1979.0,1978.4,2.61581013]
[1772830274373,4.69897272,1979.0,1978.4,1.35216274]
[1772830274878,3.13597272,1979.0,1978.4,1.35216274]
[1772830275189,1.87265382,1979.0,1978.4,1.35216274]
[1772830276488,1.87265382,1979.0,1978.6,1.35216274]
[1772830277190,3.13591821,1979.0,1978.6,1.35216274]
[1772830278577,1.87265382,1979.0,1978.6,2.61563601]
[1772830278768,3.13591969,1979.0,1978.6,2.61563601]
[1772830278976,3.13591969,1979.0,1978.3,1.35326274]
[1772830279219,3.13591969,1979.0,1978.4,1.35216274]
[1772830279514,1.87265382,1979.0,1978.4,1.35216274]
[1772830279681,3.13591968,1979.0,1978.4,1.35216274]
[1772830280314,1.87265382,1979.0,1978.4,1.35216274]
[1772830280516,1.87265382,1979.0,1978.6,1.35216274]
[1772830281395,3.13592396,1979.0,1978.6,1.35216274]
[1772830281577,1.87265382,1979.0,1978.6,1.35216274]
[1772830281780,3.13591815,1979.0,1978.6,1.35216274]
[1772830282083,1.87265382,1979.0,1978.6,1.35216274]
[1772830282480,3.13592266,1979.0,1978.7,1.35216274]
[1772830282681,3.13592053,1979.0,1978.7,1.35216274]
[1772830282882,1.87265382,1979.0,1978.7,1.35216274]
[1772830283583,5.05193549,1979.5,1978.7,1.35216274]
[1772830284008,6.35517677,1979.5,1978.7,1.35216274]
[1772830284305,0.001,1978.9,1978.7,1.35216274]
[1772830284715,5.05155417,1979.8,1978.9,1.35216274]
[1772830284716,2.56599509,1979.8,1978.9,1.35216274]
[1772830285207,1.26275381,1979.8,1978.9,1.35216274]
[1772830285509,2.56787201,1980.0,1979.1,1.35216274]
[1772830285713,1.26462955,1980.0,1979.1,1.35216274]
[1772830286006,1.30324128,1979.9,1979.1,1.35216274]
[1772830286805,1.30324128,1979.7,1979.1,1.35216274]
[1772830287222,1.30324128,1979.7,1979.1,2.61535834]
[1772830287737,1.30324128,1979.7,1979.1,2.61535815]
[1772830287906,1.30324128,1979.7,1979.1,1.35216274]
[1772830288109,1.30324128,1979.7,1978.9,1.35216274]
[1772830288719,1.30324128,1979.7,1978.7,3.88661779]
[1772830289346,2.56612267,1979.6,1978.8,1.35216274]
[1772830289815,1.26288139,1979.6,1978.8,1.35216274]
[1772830290310,1.26279692,1979.8,1978.8,1.35216274]
[1772830290745,2.5660382,1979.8,1978.8,1.35216274]
[1772830291042,1.30324128,1979.7,1978.8,1.35216274]
[1772830291338,1.26288139,1979.6,1978.9,1.26332811]
[1772830291529,1.26288139,1979.6,1979.0,1.35216274]
[1772830291719,2.63073492,1979.6,1979.0,1.35216274]
[1772830291916,1.36785353,1979.5,1978.7,1.41222384]
[1772830293425,2.63086252,1979.4,1978.7,1.41222384]
[1772830294513,1.26299435,1979.5,1978.8,1.41222384]
[1772830295541,5.05132517,1979.7,1979.0,1.41222384]
[1772830295724,0.001,1979.3,1979.0,1.41222384]
[1772830296041,0.001,1979.3,1978.8,1.41222384]
[1772830298622,1.36885353,1979.3,1978.5,9.11690573]
[1772830298827,0.001,1979.3,1978.6,1.41222384]
[1772830300250,1.36885353,1979.3,1978.5,2.67686294]
[1772830300440,1.36885353,1979.3,1978.6,1.41222384]
[1772830301023,0.001,1979.3,1978.6,1.41222384]
[1772830302641,0.001,1979.3,1978.8,1.41222384]
[1772830307624,0.001,1979.3,1978.8,1.41332384]
[1772830307857,0.001,1979.3,1978.8,2.67671346]
[1772830308353,0.001,1979.3,1978.8,1.41332384]
[1772830310245,0.001,1979.3,1978.8,2.67670641]
[1772830310543,0.001,1979.3,1978.9,1.41222384]
[1772830311877,0.001,1979.3,1979.1,1.41222384]
[1772830312570,0.001,1979.3,1979.0,1.26326427]
[1772830312571,1.26281759,1979.7,1979.2,1.41222384]
[1772830314656,2.63067112,1979.7,1979.2,1.41222384]
[1772830315156,1.36785353,1979.6,1978.9,1.41222384]
[1772830316663,1.26294518,1979.5,1979.0,1.42653907]
[1772830316982,2.59224118,1979.5,1979.0,1.42653907]
[1772830319164,1.329296,1979.4,1978.8,0.0011]
[1772830320261,1.329296,1979.4,1978.9,1.42653907]
[1772830320485,1.26294518,1979.5,1978.9,1.42763907]
[1772830320793,2.59324118,1979.5,1978.9,1.42763907]
[1772830321094,2.59324118,1979.5,1979.0,1.26326427]
[1772830321389,0.001,1979.5,1979.1,1.42653907]
[1772830321890,1.26288313,1979.6,1979.2,1.30505049]
[1772830323065,1.26288313,1979.6,1979.0,1.26326427]
[1772830323066,2.66736009,1979.6,1979.0,2.56830929]
[1772830324235,2.66736009,1979.6,1979.0,1.30505049]
[1772830324236,1.40447696,1979.5,1979.0,1.30505049]
[1772830324405,1.40447696,1979.5,1978.9,0.0011]
[1772830325198,1.40447696,1979.3,1978.9,0.0011]
[1772830327601,1.26313662,1979.2,1978.9,0.0011]
[1772830329106,2.66761358,1979.2,1978.7,0.0011]
[1772830329312,1.40447696,1979.1,1978.7,0.0011]
[1772830329511,1.40447696,1979.1,1978.5,0.0011]